bitfinex/quotes_ETHUSD_20251226
["timestamp","ask_amount","ask_price","bid_price","bid_amount"]
[1766763956873,0.9857,2917.3,2916.1,0.03629237]
[1766763957597,0.9857,2917.2,2916.1,0.002]
[1766763957765,0.9857,2917.1,2916.1,0.002]
[1766763957965,0.9857,2916.9,2916.1,0.002]
[1766763958165,0.9857,2916.7,2916.1,0.002]
[1766763959099,0.9857,2916.7,2915.8,0.0342959]
[1766763959411,0.9857,2916.7,2915.7,0.002]
[1766763960302,0.9857,2916.6,2915.7,0.002]
[1766763960605,0.9857,2916.4,2915.7,0.002]
[1766763960804,0.9857,2916.2,2915.4,0.03630061]
[1766763960977,0.9857,2916.2,2915.4,0.002]
[1766763961378,0.9857,2916.2,2915.4,0.03630061]
[1766763962203,0.9857,2916.2,2915.4,0.002]
[1766763962406,0.9857,2916.0,2915.0,0.898]
[1766763962706,0.9857,2916.0,2915.0,0.002]
[1766763963274,1.04036535,2916.0,2915.0,0.002]
[1766763963901,0.18747,2916.1,2915.1,0.5018]
[1766763964104,0.9857,2916.3,2915.2,0.03430296]
[1766763964279,0.9857,2916.3,2915.3,0.5018]
[1766763964482,0.05466535,2917.1,2915.4,0.53610061]
[1766763964691,0.9857,2916.8,2915.4,1.43210061]
[1766763964892,0.9857,2916.8,2915.5,0.5018]
[1766763965080,0.9857,2916.8,2915.6,0.53609825]
[1766763965515,0.9857,2916.8,2915.6,0.5018]
[1766763965678,0.9857,2916.8,2915.7,0.03429708]
[1766763966010,3.42784036,2918.2,2915.7,0.03429708]
[1766763966011,0.9857,2917.2,2915.9,0.5018]
[1766763966321,0.9857,2917.7,2916.1,0.5018]
[1766763966487,0.9857,2917.6,2916.3,0.5018]
[1766763966678,0.9857,2917.6,2916.4,0.53608884]
[1766763966871,0.18757,2917.5,2916.4,0.53608884]
[1766763967076,0.9857,2917.6,2916.4,0.53608884]
[1766763967278,0.9857,2917.6,2916.1,0.5018]
[1766763967473,0.9857,2917.6,2916.2,6.85824016]
[1766763967809,0.9857,2917.4,2916.3,0.77029404]
[1766763968311,0.9857,2917.4,2916.3,0.73600402]
[1766763968679,0.9857,2917.4,2916.4,0.53608884]
[1766763969620,0.9857,2917.4,2916.5,3.42876735]
[1766763969779,0.9857,2917.4,2916.6,0.03428649]
[1766763969977,0.9857,2917.4,2916.6,0.43077187]
[1766763970707,0.9857,2917.4,2916.3,0.73800402]
[1766763970908,0.9857,2917.4,2916.3,3.43092538]
[1766763971078,0.9857,2917.4,2916.4,3.42887209]
[1766763971279,0.9857,2917.4,2916.5,0.03428767]
[1766763971703,0.9857,2917.4,2916.5,3.46304528]
[1766763972387,0.9857,2917.4,2916.5,0.03428767]
[1766763972576,0.9857,2917.4,2916.3,0.5038]
[1766763972779,0.9857,2917.4,2916.4,0.39328967]
[1766763972979,0.9857,2917.4,2916.3,0.002]
[1766763973411,0.9857,2917.4,2916.3,0.5038]
[1766763973584,0.89,2917.3,2916.3,3.96708954]
[1766763973789,0.89,2917.3,2916.4,3.42888492]
[1766763973996,0.89,2917.3,2916.5,0.03428767]
[1766763974202,0.9857,2917.4,2916.6,0.39649726]
[1766763974507,0.9857,2917.4,2916.7,0.03428532]
[1766763974808,0.9857,2917.4,2916.5,0.03428767]
[1766763976008,0.05566535,2917.8,2916.7,0.3228]
[1766763976009,0.001,2917.8,2916.7,0.3228]
[1766763976318,0.001,2917.8,2916.9,0.3228]
[1766763976492,0.001,2917.8,2917.0,0.35708179]
[1766763977310,0.001,2918.2,2917.0,0.35708179]
[1766763977815,0.9206,2918.2,2917.0,0.35708179]
[1766763978004,0.001,2918.2,2917.2,0.3218]
[1766763978206,0.001,2918.4,2917.4,0.3218]
[1766763978411,0.001,2918.4,2917.6,0.3208]
[1766763978625,0.001,2918.7,2917.7,0.35507357]
[1766763979688,0.9206,2919.0,2917.9,0.3198]
[1766763979889,0.001,2919.0,2918.2,3.42676992]
[1766763980090,0.001,2919.0,2918.3,0.03426652]
[1766763980703,0.001,2919.0,2918.3,0.35306652]
[1766763980911,0.001,2919.2,2918.3,0.35306652]
[1766763981110,0.9206,2919.4,2918.5,0.3168]
[1766763981306,0.001,2919.4,2918.6,0.350063]
[1766763981949,0.9196,2919.8,2918.6,0.350063]
[1766763981950,0.9206,2920.2,2918.8,0.3108]
[1766763982127,0.9206,2920.2,2919.1,0.3108]
[1766763982338,5.55305394,2921.5,2919.3,0.3108]
[1766763982339,0.9196,2920.6,2919.3,0.3108]
[1766763982628,0.9196,2920.6,2919.5,0.3098]
[1766763983539,0.9196,2920.6,2919.6,0.03425126]
[1766763984220,0.9196,2920.6,2919.6,3.42509588]
[1766763984419,0.9196,2920.6,2919.5,3.73499512]
[1766763984622,0.9196,2921.2,2919.7,0.3098]
[1766763984824,0.9196,2921.1,2919.8,0.34404892]
[1766763985508,0.889,2921.3,2919.8,0.34404892]
[1766763986018,1.8086,2921.3,2919.9,3.42477482]
[1766763986209,0.001,2920.6,2920.1,0.3098]
[1766763986536,0.18086,2921.2,2920.3,0.3088]
[1766763986718,1.09841198,2921.6,2920.4,0.34304188]
[1766763986914,0.9196,2921.6,2920.4,0.34304188]
[1766763987836,0.001,2921.8,2920.4,0.3088]
[1766763988133,0.001,2921.8,2920.0,0.896]
[1766763988134,0.001,2921.8,2920.6,0.3088]
[1766763988343,0.001,2921.8,2920.8,0.3088]
[1766763988508,0.001,2921.8,2920.9,0.34303602]
[1766763988928,0.9196,2922.1,2920.9,0.34303602]
[1766763991060,0.9196,2922.1,2921.1,0.3078]
[1766763991225,0.9196,2922.1,2920.7,1.2028]
[1766763991748,0.9196,2922.1,2920.9,3.42359371]
[1766763991957,0.9196,2922.1,2921.0,0.71896586]
[1766763992749,0.9196,2922.1,2921.0,0.68473101]
[1766763992951,0.9196,2922.1,2920.9,0.895]
[1766763993261,0.889,2922.4,2919.7,0.3078]
[1766763993262,0.97426535,2921.7,2919.7,0.3078]
[1766763993548,0.97426535,2921.7,2920.3,0.3078]
[1766763993549,0.9196,2921.5,2920.3,0.3078]
[1766763994050,0.9196,2921.5,2920.4,0.03424188]
[1766763996450,0.9196,2921.3,2920.1,0.0342454]
[1766763996664,0.9196,2921.3,2919.9,0.3078]
[1766763996985,0.9196,2921.1,2920.0,0.03424657]
[1766763997262,0.9196,2921.1,2919.3,0.895]
[1766763997263,0.9196,2921.1,2919.9,3.42477136]
[1766763997415,0.18086,2921.4,2919.8,0.3078]
[1766763997621,0.9196,2921.5,2919.7,6.85001715]
[1766763997622,0.9196,2922.0,2920.3,0.3078]
[1766763997818,0.9196,2922.0,2920.5,0.3078]
[1766763998047,0.97426535,2922.0,2920.6,1.23703953]
[1766763998750,0.97426535,2922.0,2920.7,0.3078]
[1766763998916,0.9196,2921.8,2920.8,0.03423719]
[1766763999654,0.9196,2921.8,2920.8,0.34203719]
[1766763999827,0.9196,2921.8,2920.9,0.3078]
[1766764000033,0.9196,2921.8,2921.0,0.03423485]
[1766764000547,0.001,2922.1,2921.0,0.34203485]
[1766764001123,0.9196,2922.5,2921.0,0.34203485]
[1766764001124,0.9196,2922.5,2921.1,0.3068]
[1766764001321,0.18086,2922.4,2921.3,0.3068]
[1766764001551,0.18086,2922.4,2921.6,0.3068]
[1766764001750,0.18086,2922.4,2921.3,0.895]
[1766764001751,0.9196,2922.3,2921.3,0.895]
[1766764001953,0.9196,2922.3,2921.4,0.03423016]
[1766764002155,0.9196,2922.3,2921.4,3.45720082]
[1766764002457,0.9196,2922.3,2921.4,3.45720421]
[1766764003055,0.9196,2922.3,2921.4,3.76300421]
[1766764003221,0.9196,2922.3,2921.4,0.34003016]
[1766764003422,0.9196,2922.3,2920.9,0.3058]
[1766764003642,0.9196,2922.3,2921.0,0.03423485]
[1766764003855,0.9196,2922.3,2921.3,3.42313049]
[1766764004025,0.9917,2922.4,2921.4,0.37654321]
[1766764004220,0.001,2923.0,2921.5,0.3058]
[1766764004221,0.9225,2922.8,2921.5,0.3058]
[1766764004446,0.9225,2922.8,2921.7,0.3058]
[1766764004649,0.9225,2922.8,2921.8,0.03422547]
[1766764004951,0.9225,2922.8,2921.8,0.34002547]
[1766764005135,0.001,2923.0,2921.8,0.3058]
[1766764005526,0.9235,2923.0,2921.9,3.42243061]
[1766764005738,0.9235,2923.0,2921.9,3.72823061]
[1766764005956,0.9235,2923.0,2921.9,7.15066122]
[1766764006363,0.9235,2923.0,2921.9,4.44329673]
[1766764006724,0.001,2923.0,2922.0,0.3058]
[1766764006926,0.001,2923.0,2922.2,0.3058]
[1766764007158,0.001,2923.3,2922.4,0.3048]
[1766764007355,0.001,2923.3,2922.5,0.03421727]
[1766764007356,0.9235,2923.3,2922.5,0.03421727]
[1766764007555,0.9225,2923.2,2922.1,0.03422196]
[1766764007756,0.001,2923.3,2921.9,0.3038]
[1766764007958,0.17875431,2924.3,2923.0,5.55305394]
[1766764008159,0.17875431,2924.3,2923.1,0.03421025]
[1766764008326,0.001,2924.4,2923.2,0.92920908]
[1766764008532,0.9235,2924.4,2923.3,0.92920791]
[1766764009071,0.9225,2924.8,2923.6,5.55305394]
[1766764009226,0.9225,2924.8,2923.3,0.64822618]
[1766764009430,0.9225,2924.8,2923.8,5.55305394]
[1766764009629,0.2687658,2925.1,2924.0,10.25991792]
[1766764009862,0.2687658,2925.1,2924.1,0.03419855]
[1766764010542,1.1912658,2925.1,2924.2,0.92919738]
[1766764010738,0.9225,2925.0,2924.2,0.92919738]
[1766764011067,0.9225,2925.0,2924.3,0.894]
[1766764011364,0.9225,2925.0,2924.4,0.03419504]
[1766764011564,0.2687658,2925.1,2924.4,3.45359194]
[1766764011929,0.9235,2925.4,2924.4,3.45359194]
[1766764012165,0.9235,2925.4,2924.4,6.87309679]
[1766764012334,0.9235,2925.4,2924.4,0.894]
[1766764012535,0.9235,2925.4,2924.4,0.03419504]
[1766764012743,0.9235,2925.4,2924.4,4.34768626]
[1766764013033,0.26395672,2925.6,2924.4,17.48228526]
[1766764013235,0.26395672,2925.6,2924.5,0.894]
[1766764013445,0.26395672,2925.6,2924.6,0.03419271]
[1766764013657,0.26395672,2925.6,2924.7,6.8383082]
[1766764013961,0.9225,2926.2,2924.8,0.03419037]
[1766764014164,0.9225,2926.2,2924.8,0.72144023]
[1766764014732,0.9225,2926.2,2924.9,0.894]
[1766764014934,0.9225,2926.2,2925.0,0.03418803]
[1766764015333,0.9225,2926.2,2925.1,0.894]
[1766764015566,0.9225,2926.2,2925.1,0.92818686]
[1766764015982,0.9225,2926.2,2924.1,3.41976232]
[1766764015983,0.9225,2926.2,2924.9,3.41884639]
[1766764016137,0.9225,2926.2,2924.9,0.894]
[1766764016337,0.9225,2926.2,2925.0,0.03418803]
[1766764016640,0.9225,2926.2,2925.1,0.03418686]
[1766764016847,0.001,2925.6,2925.1,0.03418686]
[1766764017069,0.9225,2926.2,2925.1,3.45283726]
[1766764017672,0.9225,2926.2,2925.1,0.03418686]
[1766764017990,0.9225,2926.0,2924.9,0.0341892]
[1766764018291,0.9225,2926.0,2924.5,0.894]
[1766764018292,0.9225,2925.8,2924.6,3.45343206]
[1766764018496,0.9225,2925.8,2924.6,0.03419271]
[1766764018655,0.9225,2925.8,2924.6,3.45339677]
[1766764018854,0.9225,2925.8,2924.6,0.03419271]
[1766764019671,0.9225,2925.8,2924.7,3.4191541]
[1766764019880,0.9225,2925.8,2924.8,0.03419037]
[1766764020694,0.9225,2925.8,2923.9,3.4200292]
[1766764020991,0.9225,2925.6,2924.1,0.894]
[1766764021197,0.9225,2925.9,2924.6,6.83850635]
[1766764021499,0.9225,2926.2,2924.7,0.92819154]
[1766764021799,0.9225,2926.2,2924.9,6.8378406]
[1766764021958,0.9225,2926.2,2925.0,0.03418803]
[1766764022158,0.9225,2926.7,2925.0,0.03418803]
[1766764022358,0.26155218,2927.3,2925.2,5.83155331]
[1766764022359,0.9225,2927.1,2925.2,5.83155331]
[1766764022565,0.26155218,2927.3,2925.7,5.77688796]
[1766764022889,0.9225,2927.6,2925.2,5.83155331]
[1766764023192,0.9225,2927.6,2925.4,0.37906855]
[1766764023365,0.9225,2927.6,2925.5,0.03418219]
[1766764023688,0.9225,2927.6,2925.7,10.25395629]
[1766764023885,0.9225,2927.6,2925.8,0.03417868]
[1766764024063,0.9225,2927.6,2925.9,0.894]
[1766764024265,0.9225,2927.6,2925.9,1.46001204]
[1766764024467,0.9225,2927.4,2926.0,0.03417634]
[1766764024673,0.9225,2927.4,2925.9,0.03417751]
[1766764024874,0.9235,2926.8,2926.0,0.03417634]
[1766764025074,0.9235,2926.8,2925.8,0.894]
[1766764025270,0.9225,2927.2,2925.9,0.03417751]
[1766764025476,0.9225,2927.2,2925.8,1.66699709]
[1766764025676,0.9225,2927.2,2926.0,3.41763499]
[1766764025873,0.9225,2927.2,2925.8,0.77299709]
[1766764026069,0.9225,2927.2,2925.3,3.41839914]
[1766764026070,0.9225,2927.0,2925.9,4.31170732]
[1766764026269,0.9225,2927.0,2925.9,7.72948469]
[1766764026471,0.9225,2927.0,2926.0,0.03417634]
[1766764027079,0.9225,2927.5,2926.0,0.03417634]
[1766764027506,0.9225,2927.5,2926.1,0.894]
[1766764027803,0.9225,2927.5,2926.2,0.03417401]
[1766764027987,0.9225,2927.4,2926.0,0.894]
[1766764028310,0.9225,2927.4,2926.2,3.4173731]
[1766764028500,0.9225,2927.4,2926.3,0.03417284]
[1766764029079,0.9225,2927.4,2926.4,0.03417167]
[1766764029514,0.9225,2927.4,2926.5,0.03417051]
[1766764029814,0.9225,2927.4,2926.6,0.03416934]
[1766764029990,0.9225,2927.4,2926.3,3.41723941]
[1766764030175,0.9225,2927.4,2926.4,0.03417167]
[1766764030576,0.9225,2927.4,2926.3,7.26554797]
[1766764030805,0.9225,2927.4,2926.3,3.84826335]
[1766764031016,0.9225,2927.4,2926.3,7.26554797]
[1766764031808,0.9235,2927.4,2926.3,7.26554797]
[1766764032688,0.9235,2927.4,2926.4,0.893]
[1766764032889,0.9235,2927.4,2926.4,0.92717167]
[1766764033114,0.9225,2927.2,2926.2,0.893]
[1766764033330,0.001,2927.4,2926.2,0.893]
[1766764033331,0.9225,2927.0,2926.3,0.03417284]
[1766764034013,0.9225,2927.0,2926.3,3.45143966]
[1766764034226,0.9125,2927.4,2926.3,3.41726682]
[1766764034386,0.94567167,2927.3,2926.3,3.41726682]
[1766764034596,0.94567167,2927.3,2926.4,0.03417167]
[1766764035103,0.9115,2927.3,2926.4,0.03417167]
[1766764035319,0.001,2927.4,2926.4,0.03417167]
[1766764035320,0.9115,2927.1,2926.4,0.03417167]
[1766764035522,0.03417167,2927.0,2926.4,0.03417167]
[1766764035839,0.94567167,2927.0,2926.4,0.03417167]
[1766764036202,0.94567167,2927.0,2926.4,3.45133415]
[1766764036530,0.94567167,2927.0,2925.9,0.002]
[1766764036691,0.94567167,2927.0,2925.9,0.03617751]
[1766764037022,0.9115,2926.8,2925.9,0.03617751]
[1766764037223,0.9115,2927.1,2925.9,0.03617751]
[1766764037525,0.888,2927.4,2925.9,0.03617751]
[1766764037526,0.94567167,2927.0,2926.0,3.41756138]
[1766764037724,0.94567167,2927.0,2926.1,0.03417518]
[1766764038022,0.94567167,2927.0,2925.9,3.41965736]
[1766764038223,0.94567167,2927.0,2925.9,0.03617751]
[1766764038435,0.94567167,2927.0,2925.9,0.002]
[1766764038436,0.9115,2927.0,2925.9,0.002]
[1766764038623,0.9115,2926.8,2925.9,0.002]
[1766764038793,0.9115,2926.6,2925.9,0.002]
[1766764038997,0.94567167,2926.5,2925.9,0.002]
[1766764039619,0.03417167,2926.4,2925.9,0.002]
[1766764039821,0.9115,2926.8,2925.9,0.03617751]
[1766764040124,0.94567167,2927.3,2926.0,7.72826998]
[1766764040333,0.94567167,2927.3,2926.1,0.03417518]
[1766764042240,0.94567167,2927.3,2926.2,3.4174014]
[1766764042433,0.94567167,2927.3,2926.3,0.03417284]
[1766764042944,0.94567167,2927.3,2926.3,0.7210704]
[1766764043726,0.94567167,2927.3,2926.3,0.03417284]
[1766764044714,0.94567167,2927.3,2926.2,3.4174014]
[1766764044715,0.94567167,2927.3,2926.2,2.67335668]
[1766764045044,0.94567167,2927.3,2926.3,0.01707709]
[1766764045252,0.94567167,2927.3,2926.2,3.43445884]
[1766764045419,0.94567167,2927.3,2926.2,0.01707709]
[1766764045619,0.94567167,2927.3,2926.1,4.31050017]
[1766764046225,0.94567167,2927.3,2926.1,0.893]
[1766764046544,0.94567167,2927.3,2925.9,3.41966744]
[1766764046744,0.05466535,2927.0,2925.9,0.002]
[1766764046933,0.9115,2926.8,2925.9,0.002]
[1766764047116,0.95420876,2926.8,2925.9,0.002]
[1766764047645,0.95420876,2926.8,2925.9,0.01908876]
[1766764047852,0.9115,2926.6,2925.9,0.01908876]
[1766764048022,0.04271167,2926.6,2925.9,3.43683818]
[1766764048222,0.04271167,2926.6,2925.9,0.01908876]
[1766764048451,0.04271167,2926.6,2925.9,3.43683894]
[1766764048646,0.95421167,2926.6,2925.9,0.01908876]
[1766764048850,0.95421167,2926.6,2926.0,0.01709227]
[1766764049223,0.95421167,2926.6,2925.9,0.002]
[1766764050372,1.00887702,2926.6,2924.7,0.002]
[1766764050529,0.96616535,2926.4,2924.9,3.41881562]
[1766764050876,0.9115,2926.2,2925.0,3.41876656]
[1766764051054,0.9115,2926.0,2925.0,3.41875067]
[1766764051230,0.9115,2925.9,2925.3,3.418387]
[1766764051436,0.04272335,2925.8,2925.2,3.41853858]
[1766764051863,0.04272335,2925.8,2925.1,3.4186521]
[1766764052069,0.04272335,2925.8,2925.0,3.41876417]
[1766764052263,0.95422335,2925.8,2924.9,0.3420307]
[1766764052457,0.95422335,2925.8,2925.0,3.41879876]
[1766764052651,0.95422335,2925.8,2924.9,3.41887049]
[1766764052856,0.18412088,2926.7,2925.0,0.03418803]
[1766764053036,0.9115,2926.3,2925.0,0.03418803]
[1766764053368,0.9115,2926.1,2925.0,0.03418803]
[1766764053570,0.05466535,2926.4,2925.0,0.03418803]
[1766764053571,0.9115,2925.9,2925.0,0.81068905]
[1766764053768,0.04271343,2925.8,2925.0,0.81068905]
[1766764054067,0.04271343,2925.8,2924.8,0.893]
[1766764054068,0.9115,2925.7,2924.8,0.893]
[1766764054375,0.95421343,2925.6,2924.8,0.893]
[1766764054674,0.95421343,2925.6,2924.7,3.42108152]
[1766764054675,0.95421343,2925.6,2924.9,0.0341892]
[1766764054875,0.95421343,2925.6,2924.7,0.002]
[1766764054876,0.9115,2925.5,2924.7,0.002]
[1766764055077,5.83155331,2925.9,2924.7,0.002]
[1766764055078,0.9115,2925.3,2924.7,0.002]
[1766764055275,0.9115,2925.7,2925.1,0.002]
[1766764055579,0.95421343,2925.6,2925.1,0.002]
[1766764055947,0.04271343,2925.8,2925.1,0.002]
[1766764056168,0.04271343,2925.7,2925.1,0.002]
[1766764056364,0.9115,2926.0,2925.1,0.002]
[1766764056774,0.9115,2926.0,2925.1,0.03618686]
[1766764056973,0.9115,2926.0,2925.1,0.72358961]
[1766764056974,0.04271343,2925.9,2925.1,0.72358961]
[1766764057967,0.9115,2925.8,2925.1,0.68940275]
[1766764058276,0.9115,2926.1,2925.2,0.03418569]
[1766764058457,0.9115,2926.1,2925.1,0.002]
[1766764061891,0.05466535,2925.8,2924.7,0.002]
[1766764062054,0.96616535,2925.6,2924.7,0.002]
[1766764062786,0.9115,2925.4,2924.7,0.002]
[1766764063888,0.887,2925.5,2924.0,0.002]
[1766764063889,0.9115,2925.2,2924.0,0.002]
[1766764064096,0.9763,2925.0,2924.1,3.41976138]
[1766764064292,1.0105073,2924.9,2924.2,0.03419738]
[1766764064466,1.0105073,2924.9,2924.1,4.10393616]
[1766764064467,1.0105073,2924.9,2924.1,0.68417478]
[1766764064792,1.0105073,2924.9,2924.2,0.03419738]
[1766764064991,1.0105073,2924.9,2924.2,3.4539146]
[1766764065294,1.0105073,2924.9,2924.2,4.14149092]
[1766764065589,0.05466535,2925.4,2923.5,3.42248896]
[1766764065590,0.9763,2924.7,2923.5,3.42248896]
[1766764065790,0.9763,2924.5,2923.5,0.002]
[1766764066193,0.9763,2924.3,2923.6,0.893]
[1766764066393,0.04274673,2924.2,2923.6,0.893]
[1766764066594,0.04274673,2924.2,2923.7,3.4202996]
[1766764066778,0.04273358,2925.1,2923.7,0.01709872]
[1766764067089,0.9763,2924.9,2923.7,3.87059309]
[1766764067291,0.9763,2924.9,2923.7,7.29091665]
[1766764067496,0.2,2925.9,2923.7,10.69414149]
[1766764067794,1.01902919,2925.4,2923.7,10.69414149]
[1766764068191,1.01902919,2925.4,2923.7,7.27381793]
[1766764068497,0.9763,2925.2,2923.8,1.62138179]
[1766764068703,0.9763,2925.0,2923.9,0.01708351]
[1766764068871,1.0190365,2924.9,2923.9,0.01708351]
[1766764069075,1.0190365,2924.9,2923.9,3.43713009]
[1766764069297,1.0190365,2924.9,2924.0,0.50585119]
[1766764069519,1.0190365,2924.9,2924.1,0.01708468]
[1766764069802,1.0190365,2924.9,2923.8,3.42020032]
[1766764070008,0.9763,2924.9,2923.9,3.43716659]
[1766764070208,0.9149,2924.8,2923.9,3.43716659]
[1766764070494,0.95763796,2924.8,2924.0,0.34371666]
[1766764070791,0.95763796,2924.8,2924.1,0.01708468]
[1766764071492,0.9149,2924.8,2924.1,3.43691759]
[1766764072000,0.9149,2924.8,2924.1,3.45403146]
[1766764072201,0.02570468,2924.7,2924.1,3.45403146]
[1766764072403,0.02570468,2924.7,2924.2,0.37977481]
[1766764072602,1.10550292,2925.3,2924.3,0.92819621]
[1766764072772,1.10550292,2925.3,2924.2,0.37977481]
[1766764072773,0.94060468,2925.2,2924.2,0.37977481]
[1766764072978,0.94060468,2925.2,2924.3,0.894]
[1766764073592,0.94060468,2925.2,2924.4,0.894]
[1766764073964,0.94060468,2925.2,2924.5,0.03419387]
[1766764074994,0.94060468,2925.2,2924.5,0.46897544]
[1766764075196,0.94060468,2925.2,2924.2,0.894]
[1766764076104,0.94060468,2925.2,2924.1,0.03419855]
[1766764076301,0.94060468,2925.2,2924.0,0.03419972]
[1766764076481,0.94060468,2925.2,2924.1,0.894]
[1766764076683,0.94060468,2925.2,2924.2,0.03419738]
[1766764076883,0.9149,2925.0,2924.2,0.03419738]
[1766764077077,3.41837589,2925.4,2924.2,0.03419738]
[1766764077078,0.9149,2924.8,2924.2,0.03419738]
[1766764077300,0.94060468,2924.7,2924.0,0.03419972]
[1766764077502,0.94060468,2924.7,2924.1,0.894]
[1766764077912,0.94060468,2924.7,2923.9,3.45423828]
[1766764078097,0.94060468,2924.7,2923.5,3.42244933]
[1766764078297,0.94060468,2924.7,2923.7,3.42029319]
[1766764078625,0.94060468,2924.7,2923.6,0.34224493]
[1766764078924,0.9149,2924.3,2923.5,0.896]
[1766764079123,0.9149,2924.1,2923.5,0.896]
[1766764079327,0.9149,2923.9,2923.5,0.896]
[1766764079626,0.9149,2923.7,2923.5,0.896]
[1766764079829,0.02570468,2923.6,2922.8,0.002]
[1766764080125,0.02570468,2923.6,2921.6,0.002]
[1766764080126,0.94060468,2923.6,2921.6,0.002]
[1766764080294,0.9149,2923.1,2921.6,0.002]
[1766764080496,0.9149,2923.3,2922.3,3.42196215]
[1766764080723,0.9149,2924.3,2922.4,0.92821845]
[1766764080909,0.9149,2924.1,2922.4,0.92821845]
[1766764081089,0.9149,2923.9,2922.5,6.84345594]
[1766764081293,0.9149,2923.7,2922.6,1.61598354]
[1766764081515,0.94060468,2923.6,2922.6,1.61598354]
[1766764081910,0.94060468,2923.6,2922.7,0.894]
[1766764082115,0.94060468,2923.6,2922.8,0.03421376]
[1766764082700,0.94060468,2923.6,2922.6,0.68776744]
[1766764082913,0.94060468,2923.6,2922.7,1.64712234]
[1766764083134,0.94060468,2923.6,2922.9,3.4212597]
[1766764083443,0.9149,2923.6,2923.0,0.03421142]
[1766764083649,0.94166535,2924.5,2923.1,0.03421025]
[1766764083650,0.9149,2924.4,2923.1,0.03421025]
[1766764083797,0.02570468,2924.3,2923.1,1.02979894]
[1766764083999,0.9149,2924.2,2923.2,0.03420908]
[1766764084192,0.9149,2924.2,2923.3,0.894]
[1766764084438,0.9149,2924.2,2923.4,0.03420674]
[1766764084842,0.02570468,2924.1,2923.4,0.03420674]
[1766764085044,0.9149,2924.0,2923.3,0.03420791]
[1766764085247,0.9149,2923.8,2923.2,0.894]
[1766764085542,0.9149,2923.6,2923.2,0.894]
[1766764086112,0.55807139,2924.3,2923.3,0.03420791]
[1766764086113,0.9149,2924.2,2923.3,0.03420791]
[1766764086928,0.9149,2924.8,2923.3,0.03420791]
[1766764087125,0.9149,2924.6,2923.4,6.8433491]
[1766764087327,0.02570468,2924.5,2923.5,0.03420557]
[1766764087528,0.02570468,2924.5,2923.6,0.68775547]
[1766764087732,0.02570468,2924.5,2923.7,0.92820323]
[1766764088616,0.94060468,2924.5,2923.8,0.894]
[1766764088854,0.94060468,2924.5,2923.9,0.03420089]
[1766764089152,0.94060468,2924.5,2923.9,3.4200896]
[1766764089450,0.02570468,2924.5,2924.0,0.77342846]
[1766764089651,0.9159,2924.9,2924.1,0.03419855]
[1766764089853,0.02570468,2924.8,2924.1,0.03419855]
[1766764090357,0.9159,2924.9,2924.1,0.03419855]
[1766764090541,0.02570468,2924.8,2924.1,0.03419855]
[1766764091315,0.9159,2924.9,2924.2,6.83947746]
[1766764091540,0.9149,2925.4,2924.3,1.61556381]
[1766764092018,0.94060468,2925.3,2924.3,0.72156381]
[1766764092235,0.94060468,2925.3,2924.4,0.894]
[1766764092445,0.94060468,2925.3,2924.5,0.03419387]
[1766764093364,0.94060468,2925.3,2924.6,3.41927101]
[1766764093567,0.02570468,2925.3,2924.7,0.37953803]
[1766764093773,0.94060468,2925.6,2924.7,0.37953803]
[1766764093929,0.94060468,2925.5,2924.7,0.37953803]
[1766764094135,0.94060468,2925.5,2924.3,4.10692337]
[1766764094331,0.94060468,2925.5,2924.4,0.894]
[1766764094531,0.94060468,2925.5,2923.6,3.42038159]
[1766764094849,0.94060468,2925.5,2924.2,3.41973137]
[1766764095049,0.94060468,2925.5,2924.3,0.894]
[1766764095244,0.94060468,2925.5,2924.3,3.41959092]
[1766764095447,0.9004,2925.2,2924.4,0.894]
[1766764095748,0.9004,2925.0,2924.0,3.4199325]
[1766764095928,0.9004,2924.8,2924.1,0.92819855]
[1766764096131,0.02570468,2924.7,2924.1,0.92819855]
[1766764096327,0.02570468,2924.7,2924.1,0.894]
[1766764096552,0.92610468,2924.7,2923.7,3.42027029]
[1766764096741,0.92610468,2924.7,2923.8,4.34831313]
[1766764097161,0.92610468,2924.7,2923.8,0.03420206]
[1766764097373,0.92610468,2924.7,2923.9,0.894]
[1766764098347,0.92610468,2924.7,2923.6,3.45464041]
[1766764098560,0.02570468,2924.6,2924.0,0.894]
[1766764099947,0.02570468,2924.6,2924.1,0.894]
[1766764100153,0.9004,2924.7,2924.2,0.894]
[1766764100351,0.02570468,2924.6,2924.2,0.894]
[1766764100552,0.92610468,2924.6,2923.4,0.002]
[1766764100756,0.92610468,2924.6,2923.5,0.894]
[1766764101155,0.9004,2924.3,2923.1,0.03421025]
[1766764101368,0.9004,2924.1,2923.2,0.894]
[1766764101567,0.9004,2924.1,2922.4,3.42178758]
[1766764101568,0.9004,2923.9,2923.3,0.894]
[1766764101876,0.02570468,2923.8,2923.4,0.894]
[1766764102049,0.02570468,2923.8,2923.1,0.03421025]
[1766764102050,0.92610468,2923.8,2923.1,0.03421025]
[1766764102663,0.9004,2923.8,2923.2,3.45510702]
[1766764102852,0.02570468,2923.7,2923.2,0.03420908]
[1766764103053,0.02570468,2923.7,2923.2,3.45511047]
[1766764103378,0.02570468,2923.7,2923.2,0.03420908]
[1766764103584,0.92610468,2923.7,2922.9,3.42125783]
[1766764103757,0.92610468,2923.7,2923.4,0.002]
[1766764104362,0.02570468,2923.7,2923.4,0.002]
[1766764104591,0.92610468,2924.1,2923.4,0.002]
[1766764104793,0.92610468,2924.0,2923.4,0.002]
[1766764105679,0.9004,2924.5,2923.4,0.002]
[1766764105856,0.9004,2924.5,2923.4,0.03620674]
[1766764106371,0.9004,2924.5,2923.4,0.002]
[1766764106577,0.9004,2924.4,2923.4,0.002]
[1766764106883,0.9004,2924.1,2923.4,0.002]
[1766764107250,0.9004,2924.1,2922.9,0.894]
[1766764107482,0.9004,2924.1,2922.9,4.31525844]
[1766764107698,0.9004,2924.1,2923.0,0.03421142]
[1766764107991,0.9004,2924.1,2923.0,0.46915841]
[1766764108171,0.9004,2924.1,2923.0,0.43494699]
[1766764108483,0.9004,2924.1,2923.0,0.46915841]